fUSD/lending_fUSD_20240625
["ID","MTS","AMOUNT","RATE_DAILY","PERIOD"]
[330374273,1719337916722,-1481.84,0.0002,2]
[330374274,1719337916735,-661.17,0.0002,2]
[330374275,1719337916747,-500.0,0.0002,2]
[330374276,1719337916760,-1680.53,0.0002,2]
[330374277,1719337916773,-886.73,0.0002,2]
[330374278,1719337916785,-500.0,0.0002,2]
[330374279,1719337916798,-3657.63,0.0002,2]
[330374280,1719337916809,-500.0,0.0002,2]
[330374281,1719337916821,-500.0,0.0002,2]
[330374282,1719337916834,-2543.7,0.0002,2]
[330374283,1719337916850,-10088.1,0.0002,2]
[330374284,1719337916862,-2456.25,0.0002,2]
[330374285,1719337916874,-1656.09,0.0002,2]
[330374286,1719337916887,-500.0,0.0002,2]
[330374287,1719337916899,-269.15598159,0.0002,2]
[330374288,1719337916912,-2328.62,0.0002,2]
[330374289,1719337916924,-3868.22,0.0002,2]
[330374290,1719337916937,-1796.89,0.0002,2]
[330374291,1719337916949,-500.0,0.0002,2]
[330374292,1719337916962,-500.0,0.0002,2]
[330374293,1719337916974,-500.0,0.0002,2]
[330374294,1719337916987,-4014.66,0.0002,2]
[330374295,1719337916999,-500.0,0.0002,2]
[330374296,1719337917012,-7129.8,0.0002,2]
[330374297,1719337917026,-500.0,0.0002,2]
[330374298,1719337917039,-500.0,0.0002,2]
[330374299,1719337917051,-500.0,0.0002,2]
[330374300,1719337917065,-500.0,0.0002,2]
[330374301,1719337917078,-3434.69,0.0002,2]
[330374302,1719337917090,-3567.64,0.0002,2]
[330374303,1719337917105,-2063.73,0.0002,2]
[330374304,1719337917117,-1821.82,0.0002,2]
[330374305,1719337917130,-914.75,0.0002,2]
[330374306,1719337917144,-1475.68,0.0002,2]
[330374307,1719337917159,-500.0,0.0002,2]
[330374308,1719337917174,-546.57,0.0002,2]
[330374309,1719337917187,-500.0,0.0002,2]
[330374310,1719337917202,-750.23,0.0002,2]
[330374311,1719337917215,-559.73,0.0002,2]
[330374312,1719337917228,-500.0,0.0002,2]
[330374313,1719337917243,-500.0,0.0002,2]
[330374314,1719337917256,-500.0,0.0002,2]
[330374315,1719337917268,-14507.85,0.0002,2]
[330374316,1719337917281,-500.0,0.0002,2]
[330374317,1719337917294,-500.0,0.0002,2]
[330374318,1719337917306,-2198.32,0.0002,2]
[330374319,1719337917319,-500.0,0.0002,2]
[330374320,1719337917332,-500.0,0.0002,2]
[330374321,1719337917347,-1011.11,0.0002,2]
[330374322,1719337917360,-38249.94,0.0002,2]
[330374323,1719337917374,-1316.74,0.0002,2]
[330374324,1719337917387,-500.0,0.0002,2]
[330374325,1719337917400,-500.0,0.0002,2]
[330374326,1719337917414,-887.9,0.0002,2]
[330374327,1719337917426,-500.0,0.0002,2]
[330374328,1719337917438,-500.0,0.0002,2]
[330374329,1719337917450,-697.9,0.0002,2]
[330374330,1719337917463,-500.0,0.0002,2]
[330374331,1719337917477,-500.0,0.0002,2]
[330374332,1719337917489,-500.0,0.0002,2]
[330374333,1719337917501,-1003.68,0.0002,2]
[330374334,1719337917513,-27014.67,0.0002,2]
[330374335,1719337917525,-500.0,0.0002,2]
[330374336,1719337917537,-1578.23,0.0002,2]
[330374337,1719337917548,-500.0,0.0002,2]
[330374338,1719337917560,-1975.91,0.0002,2]
[330374339,1719337917572,-1806.83,0.0002,2]
[330374340,1719337917584,-1550.6,0.0002,2]
[330374341,1719337917596,-4800.32,0.0002,2]
[330374342,1719337917608,-500.0,0.0002,2]
[330374343,1719337917619,-500.0,0.0002,2]
[330374344,1719337917630,-726.31,0.0002,2]
[330374345,1719337917642,-500.0,0.0002,2]
[330374346,1719337917654,-500.0,0.0002,2]
[330374347,1719337917665,-1230.61,0.0002,2]
[330374348,1719337917677,-3087.64,0.0002,2]
[330374349,1719337917689,-500.0,0.0002,2]
[330374350,1719337917701,-500.0,0.0002,2]
[330374351,1719337917712,-500.0,0.0002,2]
[330374352,1719337917723,-500.0,0.0002,2]
[330374353,1719337917735,-500.0,0.0002,2]
[330374354,1719337917747,-3280.0,0.0002,2]
[330374355,1719337917759,-679.84,0.0002,2]
[330374356,1719337917771,-518.93667269,0.0002,2]
[330374357,1719337917783,-500.0,0.0002,2]
[330374358,1719337917796,-1791.93,0.0002,2]
[330374359,1719337917807,-500.0,0.0002,2]
[330374360,1719337917819,-709.69,0.0002,2]
[330374361,1719337917831,-500.0,0.0002,2]
[330374362,1719337917843,-874.77,0.0002,2]
[330374363,1719337917858,-500.0,0.0002,2]
[330374364,1719337917870,-858.99,0.0002,2]
[330374365,1719337917882,-3522.11,0.0002,2]
[330374366,1719337917897,-17618.37,0.0002,2]
[330374367,1719337917908,-500.0,0.0002,2]
[330374368,1719337917920,-1076.73,0.0002,2]
[330374369,1719337917931,-587.49,0.0002,2]
[330374370,1719337917942,-500.0,0.0002,2]
[330374371,1719337917954,-500.0,0.0002,2]
[330374372,1719337917965,-500.0,0.0002,2]
[330374373,1719337917976,-2768.81,0.0002,2]
[330374374,1719337917988,-9360.45,0.0002,2]
[330374375,1719337918000,-3587.57,0.0002,2]
[330374376,1719337918011,-1531.05,0.0002,2]
[330374377,1719337918023,-500.0,0.0002,2]
[330374378,1719337918035,-588.37,0.0002,2]
[330374379,1719337918046,-654.5,0.0002,2]
[330374380,1719337918058,-1310.42,0.0002,2]
[330374381,1719337918069,-500.0,0.0002,2]
[330374382,1719337918080,-2960.82,0.0002,2]
[330374383,1719337918092,-1063.93,0.0002,2]
[330374384,1719337918107,-500.0,0.0002,2]
[330374385,1719337918126,-2408.83,0.0002,2]
[330374386,1719337918137,-159.02113509,0.0002,2]
[330374387,1719337918149,-4130.12,0.0002,2]
[330374388,1719337918166,-3984.57,0.0002,2]
[330374389,1719337918178,-799.95,0.0002,2]
[330374390,1719337918189,-10614.48,0.0002,2]
[330374391,1719337918203,-1748.04,0.0002,2]
[330374392,1719337918214,-500.0,0.0002,2]
[330374393,1719337918225,-500.0,0.0002,2]
[330374394,1719337918237,-792.5,0.0002,2]
[330374395,1719337918248,-550.72,0.0002,2]
[330374396,1719337918259,-5401.34,0.0002,2]
[330374397,1719337918271,-3298.16,0.0002,2]
[330374398,1719337918283,-1468.33,0.0002,2]
[330374399,1719337918296,-1075.13,0.0002,2]
[330374400,1719337918307,-500.0,0.0002,2]
[330374401,1719337918319,-500.0,0.0002,2]
[330374402,1719337918331,-12850.46,0.0002,2]
[330374403,1719337918345,-1746.97,0.0002,2]
[330374404,1719337918357,-500.0,0.0002,2]
[330374405,1719337918370,-3728.91,0.0002,2]
[330374406,1719337918383,-533.36,0.0002,2]
[330374407,1719337918394,-1619.57,0.0002,2]
[330374408,1719337918405,-6211.69,0.0002,2]
[330374409,1719337918420,-765.33,0.0002,2]
[330374410,1719337918431,-500.0,0.0002,2]
[330374411,1719337918442,-687.55,0.0002,2]
[330374412,1719337918454,-1253.15,0.0002,2]
[330374413,1719337918466,-500.0,0.0002,2]
[330374414,1719337918476,-3214.85,0.0002,2]
[330374415,1719337918488,-500.0,0.0002,2]
[330374416,1719337918500,-500.0,0.0002,2]
[330374417,1719337918511,-1365.93,0.0002,2]
[330374418,1719337918523,-1196.83,0.0002,2]
[330374419,1719337918534,-1014.47,0.0002,2]
[330374420,1719337918546,-2068.49,0.0002,2]
[330374421,1719337918557,-3277.71,0.0002,2]
[330374422,1719337918569,-2994.62,0.0002,2]
[330374423,1719337918580,-4726.64,0.0002,2]
[330374424,1719337918591,-4078.1,0.0002,2]
[330374425,1719337918604,-5216.67,0.0002,2]
[330374426,1719337918615,-1482.28,0.0002,2]
[330374427,1719337918627,-500.0,0.0002,2]
[330374428,1719337918638,-500.0,0.0002,2]
[330374429,1719337918649,-500.0,0.0002,2]
[330374430,1719337918661,-790.4,0.0002,2]
[330374431,1719337918672,-500.0,0.0002,2]
[330374432,1719337918684,-500.0,0.0002,2]
[330374433,1719337918695,-500.0,0.0002,2]
[330374434,1719337918707,-1436.06,0.0002,2]
[330374435,1719337918719,-686.96,0.0002,2]
[330374436,1719337918730,-500.0,0.0002,2]
[330374437,1719337918742,-1827.73,0.0002,2]
[330374438,1719337918753,-500.0,0.0002,2]
[330374439,1719337918765,-500.0,0.0002,2]
[330374440,1719337918778,-500.0,0.0002,2]
[330374441,1719337918789,-3074.5,0.0002,2]
[330374442,1719337918801,-500.0,0.0002,2]
[330374443,1719337918813,-500.0,0.0002,2]
[330374444,1719337918825,-500.0,0.0002,2]
[330374445,1719337918836,-500.0,0.0002,2]
[330374446,1719337918849,-151.0,0.0002001,2]
[330374447,1719337918861,-259.44837065,0.00020063,2]
[330374448,1719337918872,-12053.56851484,0.00020148,2]
[330374449,1719337918882,-752.38776102,0.00020173,2]
[330374450,1719337918894,-2875.60395382,0.00020173,2]
[330374451,1719337918905,-600.0,0.00020205,2]
[330374452,1719337918916,-500.0,0.00020273,2]
[330374453,1719337918928,-500.0,0.00020273,2]
[330374454,1719337918939,-177.38700759,0.00020273,2]
[330374455,1719337918952,-497.71408387,0.00020273,2]
[330374456,1719337918963,-500.0,0.00020273,2]
[330374457,1719337918975,-500.0,0.00020273,2]
[330374458,1719337918987,-500.0,0.00020273,2]
[330374459,1719337919000,-416.90228149,0.00020273,2]
[330374460,1719337919012,-500.0,0.00020273,2]
[330374461,1719337919024,-500.0,0.00020273,2]
[330374462,1719337919036,-500.0,0.00020273,2]
[330374463,1719337919048,-500.0,0.00020273,2]
[330374464,1719337919059,-2500.0,0.00020273,3]
[330374465,1719337919071,-595.8613185,0.00020273,2]
[330374466,1719337919082,-500.0,0.00020273,2]
[330374467,1719337919094,-500.0,0.00020273,2]
[330374468,1719337919107,-500.0,0.00020273,2]
[330374469,1719337919119,-500.0,0.00020273,2]
[330374470,1719337919130,-500.0,0.00020273,2]
[330374471,1719337919141,-500.0,0.00020273,2]
[330374472,1719337919152,-500.0,0.00020273,2]
[330374473,1719337919167,-500.0,0.00020273,2]
[330374474,1719337919179,-1041.25,0.00020273,2]
[330374475,1719337919191,-500.0,0.00020273,2]
[330374476,1719337919204,-746.42,0.00020273,2]
[330374477,1719337919216,-500.0,0.00020273,2]
[330374478,1719337919227,-867.14,0.00020273,2]
[330374479,1719337919242,-500.0,0.00020273,2]
[330374480,1719337919254,-500.0,0.00020273,2]
[330374481,1719337919265,-751.61,0.00020273,2]
[330374482,1719337919275,-500.0,0.00020273,2]
[330374483,1719337919287,-1356.99,0.00020273,2]
[330374484,1719337919298,-500.0,0.00020273,2]
[330374485,1719337919310,-1175.6,0.00020273,2]
[330374486,1719337919322,-500.0,0.00020273,2]
[330374487,1719337919335,-500.0,0.00020273,2]
[330374488,1719337919348,-500.0,0.00020273,2]
[330374489,1719337919361,-1372.16,0.00020273,2]
[330374490,1719337919373,-2625.16,0.00020273,2]
[330374491,1719337919385,-500.0,0.00020273,2]
[330374492,1719337919396,-500.0,0.00020273,2]
[330374493,1719337919408,-1523.16,0.00020273,2]
[330374494,1719337919419,-531.38,0.00020273,2]
[330374495,1719337919431,-761.88,0.00020273,2]
[330374496,1719337919442,-500.0,0.00020273,2]
[330374497,1719337919453,-500.0,0.00020273,2]
[330374498,1719337919465,-500.0,0.00020273,2]
[330374499,1719337919476,-983.79,0.00020273,2]
[330374500,1719337919487,-638.84,0.00020273,2]
[330374501,1719337919499,-1492.67,0.00020273,2]
[330374502,1719337919510,-500.0,0.00020273,2]
[330374503,1719337919522,-1515.14,0.00020273,2]
[330374504,1719337919533,-1556.79,0.00020273,2]
[330374505,1719337919545,-500.0,0.00020273,2]
[330374506,1719337919557,-785.12,0.00020273,2]
[330374507,1719337919568,-500.0,0.00020273,2]
[330374508,1719337919579,-500.0,0.00020273,2]
[330374509,1719337919590,-617.17,0.00020273,2]
[330374510,1719337919602,-865.89,0.00020273,2]
[330374511,1719337919614,-1076.26,0.00020273,2]
[330374512,1719337919625,-500.0,0.00020273,2]
[330374513,1719337919636,-1673.1,0.00020273,2]
[330374514,1719337919647,-554.99,0.00020273,2]
[330374515,1719337919659,-1752.72,0.00020273,2]
[330374516,1719337919670,-500.0,0.00020273,2]
[330374517,1719337919681,-500.0,0.00020273,2]
[330374518,1719337920225,-500.0,0.00020273,2]
[330374519,1719337920235,-606.45365464,0.00020273,2]
[330374520,1719337920247,-1196.42,0.00020273,2]
[330374521,1719337920256,-500.0,0.00020273,2]
[330374522,1719337920265,-546.0,0.00020273,2]
[330374523,1719337920275,-500.0,0.00020273,2]
[330374524,1719337920284,-500.0,0.00020273,2]
[330374525,1719337920293,-1230.45,0.00020273,2]
[330374526,1719337920303,-1638.27,0.00020273,2]
[330374527,1719337920313,-500.0,0.00020273,2]
[330374528,1719337920322,-500.0,0.00020273,2]
[330374529,1719337920332,-721.81,0.00020273,2]
[330374530,1719337920341,-500.0,0.00020273,2]
[330374531,1719337920355,-916.29,0.00020273,2]
[330374532,1719337920365,-1110.71,0.00020273,2]
[330374533,1719337920375,-1305.49,0.00020273,2]
[330374534,1719337920388,-813.41,0.00020273,2]
[330374535,1719337920398,-500.0,0.00020273,2]
[330374536,1719337920408,-500.0,0.00020273,2]
[330374537,1719337920417,-500.0,0.00020273,2]
[330374538,1719337920427,-500.0,0.00020273,2]
[330374539,1719337920436,-609.33206604,0.00020273,2]
[330374540,1719337920444,-500.0,0.00020273,2]
[330374541,1719337920454,-738.2,0.00020273,2]
[330374542,1719337920463,-629.35,0.00020273,2]
[330374543,1719337920472,-500.0,0.00020273,2]
[330374544,1719337920481,-2096.31,0.00020273,2]
[330374545,1719337920490,-2936.53,0.00020273,2]
[330374546,1719337920499,-500.0,0.00020273,2]
[330374547,1719337920509,-500.0,0.00020273,2]
[330374548,1719337920519,-500.0,0.00020273,2]
[330374549,1719337920528,-500.0,0.00020273,2]
[330374550,1719337920537,-500.0,0.00020273,2]
[330374551,1719337920546,-225.37988887,0.00020273,2]
[330374552,1719337920557,-500.0,0.00020273,2]
[330374553,1719337920566,-175.140596,0.00020273,2]
[330374554,1719337920576,-500.0,0.00020273,2]
[330374555,1719337920585,-500.0,0.00020273,2]
[330374556,1719337920595,-500.0,0.00020273,2]
[330374557,1719337920608,-717.21,0.00020273,2]
[330374558,1719337920617,-500.0,0.00020273,2]
[330374559,1719337920626,-500.0,0.00020273,2]
[330374560,1719337920636,-643.21314024,0.00020273,2]
[330374561,1719337920645,-759.42,0.00020273,2]
[330374562,1719337920654,-971.03,0.00020273,2]
[330374563,1719337920663,-524.13,0.00020273,2]
[330374564,1719337920672,-500.0,0.00020273,2]
[330374565,1719337920682,-598.1,0.00020273,2]
[330374566,1719337920691,-500.0,0.00020273,2]
[330374567,1719337920700,-589.92,0.00020273,2]
[330374568,1719337920710,-500.0,0.00020273,2]
[330374569,1719337920719,-675.22,0.00020273,2]
[330374570,1719337920728,-500.0,0.00020273,2]
[330374571,1719337920737,-905.04,0.00020273,2]
[330374572,1719337920747,-669.2,0.00020273,2]
[330374573,1719337920757,-1247.28,0.00020273,2]
[330374574,1719337920767,-500.0,0.00020273,2]
[330374575,1719337920776,-1109.18,0.00020273,2]
[330374576,1719337920785,-500.0,0.00020273,2]
[330374577,1719337920796,-500.0,0.00020273,2]
[330374578,1719337920805,-538.95243546,0.00020273,2]
[330374579,1719337920815,-500.0,0.00020273,2]
[330374580,1719337920824,-500.0,0.00020273,2]
[330374581,1719337920832,-500.0,0.00020273,2]
[330374582,1719337920842,-1096.34,0.00020273,2]
[330374583,1719337920856,-1550.19,0.00020273,2]
[330374584,1719337920867,-500.0,0.00020273,2]
[330374585,1719337920876,-500.0,0.00020273,2]
[330374586,1719337920886,-500.0,0.00020273,2]
[330374587,1719337920895,-757.11,0.00020273,2]
[330374588,1719337920904,-500.0,0.00020273,2]
[330374589,1719337920913,-190.18280986,0.00020273,2]
[330374590,1719337920923,-500.0,0.00020273,2]
[330374591,1719337920932,-500.0,0.00020273,2]
[330374592,1719337920941,-1826.94,0.00020273,2]
[330374593,1719337920950,-500.0,0.00020273,2]
[330374594,1719337920959,-773.72,0.00020273,2]
[330374595,1719337920968,-500.0,0.00020273,2]
[330374596,1719337920977,-1728.25,0.00020273,2]
[330374597,1719337920986,-973.7,0.00020273,2]
[330374598,1719337920995,-773.97,0.00020273,2]
[330374599,1719337921004,-1154.02,0.00020273,2]
[330374600,1719337921013,-1784.58,0.00020273,2]
[330374601,1719337921023,-658.68,0.00020273,2]
[330374602,1719337921032,-525.47,0.00020273,2]
[330374603,1719337921041,-500.0,0.00020273,2]
[330374604,1719337921050,-894.86,0.00020273,2]
[330374605,1719337921060,-1106.26,0.00020273,2]
[330374606,1719337921069,-500.0,0.00020273,2]
[330374607,1719337921079,-556.82,0.00020273,2]
[330374608,1719337921088,-1088.59,0.00020273,2]
[330374609,1719337921097,-500.0,0.00020273,2]
[330374610,1719337921112,-500.0,0.00020273,2]
[330374611,1719337921122,-1061.87,0.00020273,2]
[330374612,1719337921132,-1519.41,0.00020273,2]
[330374613,1719337921142,-1886.29,0.00020273,2]
[330374614,1719337921152,-671.23,0.00020273,2]
[330374615,1719337921167,-842.01,0.00020273,2]
[330374616,1719337921176,-500.0,0.00020273,2]
[330374617,1719337921186,-500.0,0.00020273,2]
[330374618,1719337921196,-848.32,0.00020273,2]
[330374619,1719337921207,-500.0,0.00020273,2]
[330374620,1719337921217,-571.84,0.00020273,2]
[330374621,1719337921227,-547.07,0.00020273,2]
[330374622,1719337921237,-1275.37,0.00020273,2]
[330374623,1719337921249,-708.32,0.00020273,2]
[330374624,1719337921259,-500.0,0.00020273,2]
[330374625,1719337921269,-545.35,0.00020273,2]
[330374626,1719337921278,-500.0,0.00020273,2]
[330374627,1719337921288,-1199.18,0.00020273,2]
[330374628,1719337921298,-500.0,0.00020273,2]
[330374629,1719337921308,-315.56392526,0.00020273,2]
[330374630,1719337921317,-2554.0,0.00020273,2]
[330374631,1719337921326,-500.0,0.00020273,2]
[330374632,1719337921336,-500.0,0.00020273,2]
[330374633,1719337921346,-500.0,0.00020273,2]
[330374634,1719337921362,-500.0,0.00020273,2]
[330374635,1719337921371,-896.63,0.00020273,2]
[330374636,1719337921381,-1510.6,0.00020273,2]
[330374637,1719337921390,-899.64,0.00020273,2]
[330374638,1719337921399,-500.0,0.00020273,2]
[330374639,1719337921409,-500.0,0.00020273,2]
[330374640,1719337921418,-678.52,0.00020273,2]
[330374641,1719337921428,-2297.51,0.00020273,2]
[330374642,1719337921438,-500.0,0.00020273,2]
[330374643,1719337921448,-500.0,0.00020273,2]
[330374644,1719337921457,-500.0,0.00020273,2]
[330374645,1719337921467,-500.0,0.00020273,2]
[330374646,1719337921477,-706.8,0.00020273,2]
[330374647,1719337921487,-500.0,0.00020273,2]
[330374648,1719337921497,-500.0,0.00020273,2]
[330374649,1719337921507,-500.0,0.00020273,2]
[330374650,1719337921518,-500.0,0.00020273,2]
[330374651,1719337921528,-500.0,0.00020273,2]
[330374652,1719337921538,-2864.14,0.00020273,2]
[330374653,1719337921547,-500.0,0.00020273,2]
[330374654,1719337921556,-527.52,0.00020273,2]
[330374655,1719337921566,-500.0,0.00020273,2]
[330374656,1719337921575,-767.35,0.00020273,2]
[330374657,1719337921585,-500.0,0.00020273,2]
[330374658,1719337921594,-1219.8,0.00020273,2]
[330374659,1719337921608,-817.0,0.00020273,2]
[330374660,1719337921618,-602.68,0.00020273,2]
[330374661,1719337921627,-500.0,0.00020273,2]
[330374662,1719337921636,-750.73,0.00020273,2]
[330374663,1719337921645,-605.07843368,0.00020273,2]
[330374664,1719337921655,-2190.09,0.00020273,2]
[330374665,1719337921664,-983.23,0.00020273,2]
[330374666,1719337921673,-500.0,0.00020273,2]
[330374667,1719337921683,-1053.59,0.00020273,2]
[330374668,1719337921692,-1755.84,0.00020273,2]
[330374669,1719337921701,-502.66,0.00020273,2]
[330374670,1719337921710,-811.39,0.00020273,2]
[330374671,1719337921719,-197.03246477,0.00020273,2]
[330374672,1719337921728,-500.0,0.00020273,2]
[330374673,1719337921738,-1075.29,0.00020273,2]
[330374674,1719337921747,-1534.29,0.00020273,2]
[330374675,1719337921756,-500.0,0.00020273,2]
[330374676,1719337921766,-721.67,0.00020273,2]
[330374677,1719337921775,-500.0,0.00020273,2]
[330374678,1719337921785,-1408.46,0.00020273,2]
[330374679,1719337921795,-545.9,0.00020273,2]
[330374680,1719337921805,-881.26,0.00020273,2]
[330374681,1719337921815,-1154.57,0.00020273,2]
[330374682,1719337921824,-500.0,0.00020273,2]
[330374683,1719337921834,-1299.57,0.00020273,2]
[330374684,1719337921843,-2576.08,0.00020273,2]
[330374685,1719337921856,-500.0,0.00020273,2]
[330374686,1719337921865,-561.35,0.00020273,2]
[330374687,1719337921874,-764.04,0.00020273,2]
[330374688,1719337921884,-500.0,0.00020273,2]
[330374689,1719337921893,-500.0,0.00020273,2]
[330374690,1719337921903,-500.0,0.00020273,2]
[330374691,1719337921912,-500.0,0.00020273,2]
[330374692,1719337921922,-500.0,0.00020273,2]
[330374693,1719337921931,-1230.16,0.00020273,2]
[330374694,1719337921940,-500.0,0.00020273,2]
[330374695,1719337921950,-500.0,0.00020273,2]
[330374696,1719337921960,-1956.39,0.00020273,2]
[330374697,1719337921969,-947.68,0.00020273,2]
[330374698,1719337921979,-654.42,0.00020273,2]
[330374699,1719337921989,-2524.99,0.00020273,2]
[330374700,1719337921999,-947.4,0.00020273,2]
[330374701,1719337922009,-1606.65,0.00020273,2]
[330374702,1719337922019,-500.0,0.00020273,2]
[330374703,1719337922029,-500.0,0.00020273,2]
[330374704,1719337922039,-1554.23,0.00020273,2]
[330374705,1719337922049,-754.05,0.00020273,2]
[330374706,1719337922059,-526.12,0.00020273,2]
[330374707,1719337922069,-553.36,0.00020273,2]
[330374708,1719337922079,-500.0,0.00020273,2]
[330374709,1719337922089,-500.0,0.00020273,2]
[330374710,1719337922102,-500.0,0.00020273,2]
[330374711,1719337922111,-500.0,0.00020273,2]
[330374712,1719337922121,-500.0,0.00020273,2]
[330374713,1719337922131,-500.0,0.00020273,2]
[330374714,1719337922141,-500.0,0.00020273,2]
[330374715,1719337922151,-1472.44,0.00020273,2]
[330374716,1719337922161,-2884.08,0.00020273,2]
[330374717,1719337922176,-852.6,0.00020273,2]
[330374718,1719337922186,-500.0,0.00020273,2]
[330374719,1719337922197,-500.0,0.00020273,2]
[330374720,1719337922206,-764.29,0.00020273,2]
[330374721,1719337922217,-1169.5,0.00020273,2]
[330374722,1719337922227,-500.0,0.00020273,2]
[330374723,1719337922237,-1362.64,0.00020273,2]
[330374724,1719337922251,-500.0,0.00020273,2]
[330374725,1719337922260,-500.0,0.00020273,2]
[330374726,1719337922271,-581.63,0.00020273,2]
[330374727,1719337922281,-500.0,0.00020273,2]
[330374728,1719337922291,-686.07,0.00020273,2]
[330374729,1719337922300,-508.41,0.00020273,2]
[330374730,1719337922310,-180.50576578,0.00020273,2]
[330374731,1719337922319,-500.0,0.00020273,2]
[330374732,1719337922329,-666.55,0.00020273,2]
[330374733,1719337922338,-753.97,0.00020273,2]
[330374734,1719337922348,-500.0,0.00020273,2]
[330374735,1719337922360,-666.4,0.00020273,2]
[330374736,1719337922370,-502.11376378,0.00020273,2]
[330374737,1719337922380,-500.0,0.00020273,2]
[330374738,1719337922389,-500.0,0.00020273,2]
[330374739,1719337922399,-3770.43,0.00020273,2]
[330374740,1719337922409,-806.51,0.00020273,2]
[330374741,1719337922419,-500.0,0.00020273,2]
[330374742,1719337922428,-1414.23,0.00020273,2]
[330374743,1719337922437,-836.39,0.00020273,2]
[330374744,1719337922447,-8800.46,0.00020273,2]
[330374745,1719337922456,-500.0,0.00020273,2]
[330374746,1719337922466,-2037.79,0.00020273,2]
[330374747,1719337922475,-735.13,0.00020273,2]
[330374748,1719337922485,-500.0,0.00020273,2]
[330374749,1719337922494,-1917.68,0.00020273,2]
[330374750,1719337922504,-500.0,0.00020273,2]
[330374751,1719337922513,-500.0,0.00020273,2]
[330374752,1719337922522,-500.0,0.00020273,2]
[330374753,1719337922532,-879.5,0.00020273,2]
[330374754,1719337922541,-500.0,0.00020273,2]
[330374755,1719337922550,-828.4,0.00020273,2]
[330374756,1719337922560,-2609.54,0.00020273,2]
[330374757,1719337922569,-3037.31,0.00020273,2]
[330374758,1719337922578,-500.0,0.00020273,2]
[330374759,1719337922587,-500.0,0.00020273,2]
[330374760,1719337922596,-958.33,0.00020273,2]
[330374761,1719337922608,-500.0,0.00020273,2]
[330374762,1719337922618,-500.0,0.00020273,2]
[330374763,1719337922627,-500.0,0.00020273,2]
[330374764,1719337922636,-500.0,0.00020273,2]
[330374765,1719337922646,-2824.72,0.00020273,2]
[330374766,1719337922655,-500.0,0.00020273,2]
[330374767,1719337922664,-1143.56,0.00020273,2]
[330374768,1719337922673,-803.49,0.00020273,2]
[330374769,1719337922682,-500.0,0.00020273,2]
[330374770,1719337922692,-1534.53,0.00020273,2]
[330374771,1719337922701,-673.18,0.00020273,2]
[330374772,1719337922711,-500.0,0.00020273,2]